[Event "WSTCC-65 2024"]
[Site "Krakow"]
[Date "2024.07.02"]
[Round "1.24"]
[White "Krupa, Krzysztof"]
[Black "Beier, Thomas"]
[Result "0-1"]
[ECO "C55"]
[WhiteElo "1947"]
[BlackElo "1538"]
[Annotator "NA RC"]
[PlyCount "82"]
[EventDate "2024.07.01"]
[EventType "team-tourn"]
[EventCountry "POL"]
[SourceTitle "playchess.com"]
[Source "ChessBase"]
[SourceQuality "1"]
[TimeControl "40/5400+30:1800+30"]

1. e4 {[%emt 0:00:15]} e5 {[%emt 0:00:43]} 2. Nf3 {[%emt 0:01:57]} Nc6 {[%emt 0:00:16]} 3. d4 {[%emt 0:02:30]} exd4 {[%emt 0:00:54]} 4. Bc4 {[%emt 0:00:04]} Nf6 {[%emt 0:01:44]} 5. O-O {[%emt 0:02:15]} Be7 {[%emt 0:01:44]} 6. e5 {[%emt 0:00:16]} Ne4 {[%emt 0:05:39]} 7. Bd5 {[%emt 0:08:05]} Nc5 {[%emt 0:05:46]} 8. Re1 {[%emt 0:01:12]} Ne6 {[%emt 0:03:35]} 9. c3 {[%emt 0:21:45]} O-O {[%emt 0:10:25]} 10. Nxd4 {[%emt 0:05:13]} Ncxd4 {[%emt 0:04:05]} 11. cxd4 {[%emt 0:00:02]} d6 {[%emt 0:01:04]} 12. Nc3 {[%emt 0:02:53]} dxe5 {[%emt 0:06:02]} 13. dxe5 {[%emt 0:01:37]} Bb4 {[%emt 0:01:47]} 14. Be3 {[%emt 0:05:17]} c6 {[%emt 0:06:17]} 15. Bb3 {[%emt 0:07:33]} Bxc3 {[%emt 0:12:06]} 16. bxc3 {[%emt 0:00:32]} Qa5 {[%emt 0:03:01]} 17. Qh5 {[%emt 0:04:28]} g6 {[%emt 0:13:41]} 18. Qh6 {[%emt 0:04:52]} Ng7 {[%emt 0:03:07]} 19. Qg5 {[%emt 0:04:53]} Be6 {[%emt 0:04:36]} 20. c4 {[%emt 0:05:47]} Qd8 {[%emt 0:03:00]} 21. Rad1 {[%emt 0:02:34]} Qxg5 {[%emt 0:00:21]} 22. Bxg5 {[%emt 0:00:02]} Nf5 {[%emt 0:01:34]} 23. c5 {[%emt 0:03:27]} Bxb3 {[%emt 0:03:31]} 24. axb3 {[%emt 0:00:03]} b5 {[%emt 0:00:43]} 25. Re2 {[%emt 0:04:49]} a5 {[%emt 0:00:45]} 26. Ra2 {[%emt 0:00:09]} a4 {[%emt 0:01:24]} 27. bxa4 {[%emt 0:02:18]} Rxa4 {[%emt 0:00:17]} 28. Rxa4 {[%emt 0:01:22]} bxa4 {[%emt 0:00:02]} 29. g4 {[%emt 0:00:38]} Ng7 {[%emt 0:01:43]} 30. Ra1 {[%emt 0:03:01]} Ra8 {[%emt 0:00:11]} 31. Be3 {[%emt 0:00:43]} Ne6 {[%emt 0:00:33]} 32. f4 {[%emt 0:00:07]} Nc7 {[%emt 0:00:32]} 33. f5 {[%emt 0:00:39]} a3 {[%emt 0:01:55]} 34. Ra2 {[%emt 0:00:55]} Nb5 {[%emt 0:00:54]} 35. Bd2 {[%emt 0:01:05]} Ra4 {[%emt 0:01:46]} 36. h3 {[%emt 0:01:01]} Rc4 {[%emt 0:00:12]} 37. f6 {[%emt 0:02:08]} Rxc5 {[%emt 0:00:27]} 38. Bf4 {[%emt 0:00:46]} Rc4 {[%emt 0:00:32]} 39. Be3 {[%emt 0:00:29]} Rb4 {[%emt 0:00:29]} 40. Bc5 {[%emt 0:02:04]} Rb1+ {[%emt 0:00:12]} 41. Kf2 {[%emt 0:30:42]} Rb2+ 0-1